bitfinex/quotes_BTCUSD_20240828
["timestamp","ask_amount","ask_price","bid_price","bid_amount"]
[1724833038857,0.022318,59057.0,59056.0,0.960652]
[1724833039301,0.022318,59057.0,59056.0,0.974652]
[1724833039516,0.022318,59057.0,59056.0,0.960652]
[1724833039968,0.022318,59057.0,59056.0,0.974652]
[1724833040707,0.022318,59057.0,59056.0,0.960652]
[1724833040950,0.022318,59057.0,59056.0,0.974652]
[1724833041422,0.022318,59057.0,59056.0,0.960652]
[1724833041651,0.022318,59057.0,59056.0,0.974652]
[1724833041864,0.022318,59057.0,59056.0,1.313313]
[1724833043421,0.022318,59057.0,59056.0,1.299313]
[1724833043892,0.022318,59057.0,59056.0,1.313313]
[1724833044358,0.022318,59057.0,59056.0,1.299313]
[1724833044606,0.022318,59057.0,59056.0,1.313313]
[1724833044818,0.022318,59057.0,59056.0,1.299313]
[1724833046461,0.022318,59057.0,59056.0,1.313313]
[1724833048934,0.022318,59057.0,59056.0,0.635991]
[1724833049363,0.022318,59057.0,59056.0,0.974652]
[1724833049579,0.03362817,59057.0,59056.0,0.974652]
[1724833049801,0.022318,59057.0,59056.0,0.974652]
[1724833051635,0.022318,59057.0,59056.0,1.313313]
[1724833051891,0.022318,59057.0,59056.0,0.974652]
[1724833053260,0.022318,59057.0,59056.0,1.313313]
[1724833053511,0.022318,59057.0,59056.0,0.974652]
[1724833053945,0.022318,59057.0,59056.0,1.313313]
[1724833056928,0.022318,59057.0,59056.0,0.974652]
[1724833057179,0.627918,59057.0,59056.0,0.128]
[1724833057417,0.627918,59057.0,59056.0,0.028]
[1724833057418,0.797245,59057.0,59056.0,0.028]
[1724833057648,0.80854406,59057.0,59056.0,0.028]
[1724833057880,1.14719906,59057.0,59056.0,0.014]
[1724833058134,1.48585406,59057.0,59056.0,0.014]
[1724833058366,1.48585406,59057.0,59056.0,0.028]
[1724833058367,1.82450906,59057.0,59056.0,0.028]
[1724833058606,2.03826066,59057.0,59056.0,0.014]
[1724833058846,2.03826066,59057.0,59056.0,0.0086865]
[1724833058847,1.91199604,59057.0,59056.0,0.0086865]
[1724833059064,2.25565104,59057.0,59056.0,0.014]
[1724833059319,0.846752,59049.0,59048.0,0.0127]
[1724833059540,1.49719841,59049.0,59048.0,0.0127]
[1724833059989,1.84719847,59049.0,59048.0,0.0127]
[1724833062148,1.53505379,59049.0,59048.0,0.0167]
[1724833062361,1.45940738,59049.0,59048.0,0.0137]
[1724833062602,1.45940738,59049.0,59048.0,0.0127]
[1724833062850,1.45940738,59049.0,59048.0,0.0167]
[1724833063059,1.79810838,59049.0,59048.0,0.0187]
[1724833063306,1.79810838,59049.0,59048.0,0.188053]
[1724833063307,0.03785538,59049.0,59048.0,0.188053]
[1724833063521,0.03785538,59049.0,59048.0,0.0187]
[1724833063733,0.03785538,59049.0,59048.0,0.0167]
[1724833064157,0.03785538,59049.0,59048.0,0.182053]
[1724833064427,0.03785538,59049.0,59048.0,0.52076]
[1724833064608,0.03785538,59049.0,59048.0,0.185053]
[1724833064830,0.03785538,59049.0,59048.0,0.0127]
[1724833065067,0.20720538,59049.0,59048.0,0.0127]
[1724833065302,0.20720538,59049.0,59048.0,0.0197]
[1724833065555,1.26680738,59049.0,59048.0,0.0197]
[1724833065832,1.26680738,59049.0,59048.0,0.0177]
[1724833065833,1.50324091,59049.0,59048.0,0.0177]
[1724833066072,1.50324091,59049.0,59048.0,0.0207]
[1724833066722,1.50324091,59049.0,59048.0,0.0177]
[1724833066937,1.50324091,59049.0,59048.0,0.0197]
[1724833067410,1.50324091,59049.0,59048.0,0.0147]
[1724833067633,1.50324091,59049.0,59048.0,0.0187]
[1724833068369,1.50324091,59049.0,59048.0,0.0167]
[1724833068768,1.47668459,59049.0,59048.0,0.0167]
[1724833069217,1.47668459,59049.0,59048.0,0.0187]
[1724833069887,1.47668459,59049.0,59048.0,0.0167]
[1724833070107,1.47668459,59049.0,59048.0,0.0187]
[1724833070334,1.47666786,59049.0,59048.0,0.0187]
[1724833072125,1.50322491,59049.0,59048.0,0.0187]
[1724833072623,1.84192591,59049.0,59048.0,0.0187]
[1724833072843,1.79150911,59049.0,59048.0,0.0187]
[1724833073943,1.79150911,59049.0,59048.0,0.0147]
[1724833074163,1.84191662,59049.0,59048.0,0.0147]
[1724833074378,1.79150911,59049.0,59048.0,0.0167]
[1724833074810,1.86715552,59049.0,59048.0,0.0167]
[1724833075034,2.22023343,59049.0,59048.0,0.0147]
[1724833075277,2.22023343,59049.0,59048.0,0.01201357]
[1724833075522,2.37030916,59049.0,59048.0,0.01301357]
[1724833075770,2.03160816,59049.0,59048.0,0.00785939]
[1724833075997,1.88153243,59049.0,59048.0,0.00685939]
[1724833076233,1.88353243,59049.0,59048.0,0.00685939]
[1724833076919,2.05208407,59049.0,59048.0,0.00685939]
[1724833077154,2.05008407,59049.0,59048.0,0.00485939]
[1724833077640,1.88553243,59049.0,59048.0,0.00585939]
[1724833077900,1.88553243,59049.0,59048.0,0.00485939]
[1724833077901,1.88153243,59049.0,59048.0,0.00485939]
[1724833078327,1.88153243,59049.0,59048.0,0.00585939]
[1724833078328,1.88553243,59049.0,59048.0,0.00585939]
[1724833078550,2.22923343,59049.0,59048.0,0.00585939]
[1724833078763,2.39778507,59049.0,59048.0,0.00585939]
[1724833078989,2.39278507,59049.0,59048.0,0.00585939]
[1724833079228,1.88553243,59049.0,59048.0,0.00585939]
[1724833079459,1.89453243,59049.0,59048.0,0.00685939]
[1724833079693,2.35911887,59049.0,59048.0,0.00685939]
[1724833079960,2.22423343,59049.0,59048.0,0.00585939]
[1724833080183,2.35911942,59049.0,59048.0,0.00685939]
[1724833080408,2.01640891,59049.0,59048.0,0.00585939]
[1724833080624,2.01640891,59049.0,59048.0,0.00685939]
[1724833080625,2.23323343,59049.0,59048.0,0.00685939]
[1724833080844,2.22923343,59049.0,59048.0,0.00585939]
[1724833081061,2.35217854,59049.0,59048.0,0.00585939]
[1724833081309,2.35617854,59049.0,59048.0,0.00585939]
[1724833081536,2.34317854,59049.0,59048.0,0.00485939]
[1724833081787,2.13521011,59049.0,59048.0,0.00485939]
[1724833082009,2.26821011,59049.0,59048.0,0.00585939]
[1724833082234,2.43676175,59049.0,59048.0,0.00585939]
[1724833082463,2.43676175,59049.0,59048.0,0.00485939]
[1724833082464,2.43076175,59049.0,59048.0,0.00485939]
[1724833082688,2.76546275,59049.0,59048.0,0.00485939]
[1724833082918,2.77324097,59049.0,59048.0,0.00585939]
[1724833083142,2.85174865,59049.0,59048.0,0.00585939]
[1724833083355,2.84574865,59049.0,59048.0,0.00485939]
[1724833083575,2.33849601,59049.0,59048.0,0.00485939]
[1724833083801,2.31549601,59049.0,59048.0,0.00485939]
[1724833084017,1.97679501,59049.0,59048.0,0.00485939]
[1724833084236,1.88079501,59049.0,59048.0,0.00485939]
[1724833084458,1.80228733,59049.0,59048.0,0.00485939]
[1724833084670,1.79828733,59049.0,59048.0,0.00485939]
[1724833084887,1.80528733,59049.0,59048.0,0.00585939]
[1724833085337,1.46858633,59049.0,59048.0,0.00585939]
[1724833085558,1.12988533,59049.0,59048.0,0.00585939]
[1724833085794,1.12488533,59049.0,59048.0,0.00585939]
[1724833086006,1.46358633,59049.0,59048.0,0.00485939]
[1724833086477,1.45458633,59049.0,59048.0,0.00485939]
[1724833086921,1.45958633,59049.0,59048.0,0.00485939]
[1724833087144,0.39998433,59049.0,59048.0,0.00575809]
[1724833087367,1.07738633,59049.0,59048.0,0.00575809]
[1724833087587,0.74368533,59049.0,59048.0,0.00575809]
[1724833088120,0.04963433,59049.0,59048.0,0.90481809]
[1724833088351,0.04963433,59049.0,59048.0,1.24352509]
[1724833088574,0.03833527,59049.0,59048.0,1.58223209]
[1724833088805,0.03333527,59049.0,59048.0,1.58223209]
[1724833089266,0.03433527,59049.0,59048.0,1.88643209]
[1724833089488,0.02933527,59049.0,59048.0,1.88643209]
[1724833089721,0.03033527,59049.0,59048.0,1.88843209]
[1724833090412,0.53838627,59049.0,59048.0,0.01575809]
[1724833090631,0.53738627,59049.0,59048.0,0.00775809]
[1724833090840,0.54959155,59049.0,59048.0,0.02175809]
[1724833091069,0.04154055,59049.0,59048.0,0.02175809]
[1724833091276,0.20989055,59049.0,59048.0,0.01975809]
[1724833091495,0.54859155,59049.0,59048.0,0.01975809]
[1724833091704,0.88729255,59049.0,59048.0,0.01475809]
[1724833092134,0.88629255,59049.0,59048.0,0.00975809]
[1724833092347,0.88629255,59049.0,59048.0,0.00575809]
[1724833092567,0.54859155,59049.0,59048.0,0.01375809]
[1724833092994,0.54759155,59049.0,59048.0,0.00575809]
[1724833093217,0.20889055,59049.0,59048.0,0.00575809]
[1724833093437,0.1823335,59049.0,59048.0,0.00575809]
[1724833093651,0.1823335,59049.0,59048.0,0.01475809]
[1724833093866,0.1833335,59049.0,59048.0,0.01475809]
[1724833094140,0.1823335,59049.0,59048.0,0.00575809]
[1724833094366,0.0139335,59049.0,59048.0,0.01475809]
[1724833094596,0.0149335,59049.0,59048.0,0.02275809]
[1724833095074,0.0149335,59049.0,59048.0,1.12461809]
[1724833095075,0.04048841,59049.0,59048.0,1.12461809]
[1724833095319,0.0139335,59049.0,59048.0,1.90103209]
[1724833095773,0.00272822,59049.0,59048.0,1.90303209]
[1724833096203,0.00372822,59049.0,59048.0,1.91103209]
[1724833097081,0.00272822,59049.0,59048.0,1.90103209]
[1724833097336,0.00272822,59049.0,59048.0,1.91203209]
[1724833097554,0.00172822,59049.0,59048.0,1.89303209]
[1724833097787,0.00172822,59049.0,59048.0,1.90003209]
[1724833098034,0.00272822,59049.0,59048.0,1.91403209]
[1724833098491,0.00272822,59049.0,59048.0,1.57532509]
[1724833099604,0.00272822,59049.0,59048.0,1.38032509]
[1724833100998,0.00354522,59049.0,59048.0,1.38032509]
[1724833102882,0.00354522,59049.0,59048.0,1.89973209]
[1724833103117,0.00354522,59049.0,59048.0,1.92273209]
[1724833103380,0.00354522,59049.0,59048.0,2.26143909]
[1724833104121,0.00354522,59049.0,59048.0,2.60014609]
[1724833104829,0.00354522,59049.0,59048.0,2.24043909]
[1724833104830,0.00254522,59049.0,59048.0,2.24043909]
[1724833105291,0.00354522,59049.0,59048.0,2.26143909]
[1724833105530,0.00354522,59049.0,59048.0,1.92273209]
[1724833105778,0.00354522,59049.0,59048.0,1.89973209]
[1724833106027,0.00354522,59049.0,59048.0,1.71903209]
[1724833113238,0.00354522,59049.0,59048.0,1.71648882]
[1724833115539,0.00354522,59049.0,59048.0,1.73818722]
[1724833116041,0.00354522,59049.0,59048.0,1.76118722]
[1724833116245,0.00354522,59049.0,59048.0,2.28029422]
[1724833117169,0.00354522,59049.0,59048.0,2.61900122]
[1724833119008,0.00354522,59049.0,59048.0,2.28029422]
[1724833120138,0.00354522,59049.0,59048.0,2.61900122]
[1724833120360,0.00354522,59049.0,59048.0,2.28029422]
[1724833123481,0.00354522,59049.0,59048.0,2.61900122]
[1724833124209,0.00354522,59049.0,59048.0,2.28029422]
[1724833124862,0.00354522,59049.0,59048.0,2.62400122]
[1724833125534,0.0215,59054.0,59053.0,1.524051]
[1724833125750,0.0215,59054.0,59053.0,2.32479639]
[1724833128296,0.0215,59054.0,59053.0,2.33879639]
[1724833128993,0.0215,59054.0,59053.0,2.35279639]
[1724833130401,0.0215,59054.0,59053.0,2.69147439]
[1724833130635,0.0215,59054.0,59053.0,2.69647439]
[1724833130868,0.000818,59057.0,59053.0,2.69647439]
[1724833130869,0.022318,59057.0,59056.0,1.523974]
[1724833131086,0.000817,59063.0,59062.0,1.774094]
[1724833131378,0.000817,59063.0,59062.0,2.41076639]
[1724833131620,0.000817,59063.0,59062.0,2.53376639]
[1724833131856,0.000817,59063.0,59062.0,2.87239339]
[1724833133426,0.000817,59063.0,59062.0,2.35966639]
[1724833133643,0.000817,59063.0,59062.0,1.95886639]
[1724833134127,0.000817,59063.0,59062.0,1.97286639]
[1724833134128,0.01213816,59063.0,59062.0,1.97286639]
[1724833134336,0.000817,59063.0,59062.0,1.97286639]
[1724833134578,0.000817,59063.0,59062.0,1.95886639]
[1724833134824,0.000817,59063.0,59062.0,0.846567]
[1724833135051,0.000817,59063.0,59062.0,0.860567]
[1724833135511,0.000817,59063.0,59062.0,1.185194]
[1724833135742,0.000817,59063.0,59062.0,1.199194]
[1724833135976,0.000817,59063.0,59062.0,1.213194]
[1724833136201,0.000817,59063.0,59062.0,1.299194]
[1724833136625,0.000817,59063.0,59062.0,1.313194]
[1724833137511,0.000817,59063.0,59062.0,1.63423939]
[1724833138631,0.000817,59063.0,59062.0,1.313194]
[1724833141186,0.000817,59063.0,59062.0,0.974567]
[1724833141422,0.000817,59063.0,59062.0,1.27261239]
[1724833141682,0.000817,59063.0,59062.0,1.61123939]
[1724833141918,0.000817,59063.0,59062.0,2.03013939]
[1724833142381,0.000817,59063.0,59062.0,2.01613939]
[1724833142836,0.000817,59063.0,59062.0,2.03013939]
[1724833143048,0.000817,59063.0,59062.0,2.01613939]
[1724833143260,0.000817,59063.0,59062.0,2.00213939]
[1724833143965,0.05050422,59081.0,59074.0,0.677109]
[1724833144225,0.00020446,59086.0,59085.0,0.507742]
[1724833144454,0.00020446,59086.0,59085.0,1.623227]
[1724833144673,0.00020446,59086.0,59085.0,1.646227]
[1724833145835,0.00020446,59086.0,59085.0,1.660227]
[1724833146285,0.00020446,59086.0,59085.0,1.646227]
[1724833146512,0.00020446,59086.0,59085.0,1.660227]
[1724833147020,0.00020446,59086.0,59085.0,1.984722]
[1724833147271,0.0107335,59088.0,59087.0,2.23771839]
[1724833147490,0.0107335,59088.0,59087.0,2.062673]
[1724833147732,0.0107335,59088.0,59087.0,1.646173]
[1724833149037,0.0107335,59088.0,59087.0,1.660173]
[1724833149474,0.00020449,59107.0,59092.0,1.523047]
[1724833149710,0.40222,59104.0,59092.0,1.94409239]
[1724833149953,0.40222,59104.0,59092.0,1.97808239]
[1724833150657,0.40222,59104.0,59092.0,1.646047]
[1724833150878,0.391,59094.0,59092.0,1.646047]
[1724833151328,0.01168965,59093.0,59092.0,1.646047]
[1724833151543,0.01168965,59093.0,59092.0,1.623047]
[1724833151970,0.01168965,59093.0,59092.0,1.284592]
[1724833152177,0.01168965,59093.0,59092.0,0.846137]
[1724833152390,0.01168965,59093.0,59092.0,0.860137]
[1724833152602,0.01168965,59093.0,59092.0,0.874137]
[1724833152829,0.35268965,59094.0,59093.0,0.846122]
[1724833153084,0.35268965,59094.0,59093.0,1.184571]
[1724833153488,0.35268965,59094.0,59093.0,1.284571]
[1724833153924,0.35268965,59094.0,59093.0,1.298571]
[1724833154151,0.54488965,59094.0,59093.0,0.114]
[1724833154409,0.54488965,59094.0,59093.0,0.014]
[1724833154410,0.71411065,59094.0,59093.0,0.014]
[1724833154638,0.54488965,59094.0,59093.0,0.014]
[1724833155305,0.1922,59094.0,59092.0,0.169225]
[1724833155521,0.1922,59094.0,59093.0,0.014]
[1724833155731,0.756422,59094.0,59093.0,0.014]
[1724833156226,1.098864,59094.0,59093.0,0.014]
[1724833156443,1.098864,59094.0,59093.0,0.028]
[1724833156444,1.442307,59094.0,59093.0,0.028]
[1724833156679,1.098864,59094.0,59093.0,0.028]
[1724833156927,1.098864,59094.0,59093.0,0.535673]
[1724833156928,0.5912,59094.0,59093.0,0.535673]
[1724833157140,0.5912,59094.0,59093.0,0.028]
[1724833157141,1.098864,59094.0,59093.0,0.028]
[1724833158051,0.760421,59094.0,59093.0,0.028]
[1724833158316,0.760421,59094.0,59093.0,0.014]
[1724833158775,0.4115,59093.0,59089.0,0.269235]
[1724833158984,0.4115,59093.0,59089.0,0.1]
[1724833158985,0.169228,59092.0,59089.0,0.1]
[1724833159195,0.4057,59090.0,59088.0,0.269238]
[1724833159410,0.4057,59090.0,59087.0,0.169241]
[1724833159636,0.4057,59090.0,59088.0,0.169239]
[1724833159862,0.4057,59088.0,59085.0,0.169246]
[1724833160089,0.361942,59087.0,59084.0,0.16925]
[1724833160314,0.392,59086.0,59085.0,0.169247]
[1724833160536,0.392,59086.0,59085.0,0.507742]
[1724833160774,0.392,59086.0,59085.0,0.846237]
[1724833161011,0.392,59086.0,59085.0,1.184732]
[1724833161250,0.000817,59094.0,59085.0,0.77699]
[1724833161251,0.1862,59093.0,59085.0,0.77699]
[1724833161482,0.1862,59093.0,59080.0,0.63656539]
[1724833161483,0.1862,59093.0,59092.0,0.846137]
[1724833161938,0.19705392,59093.0,59092.0,0.507682]
[1724833163064,0.19705392,59093.0,59087.0,0.338478]
[1724833163277,0.19705392,59093.0,59088.0,0.1]
[1724833163278,0.4018,59092.0,59088.0,0.1]
[1724833163510,0.41265859,59092.0,59088.0,0.169237]
[1724833163717,0.58188559,59092.0,59089.0,0.1]
[1724833164188,0.4018,59086.0,59077.0,0.338538]
[1724833164405,0.4018,59086.0,59084.0,0.169248]
[1724833164677,0.4018,59086.0,59085.0,0.169247]
[1724833165118,0.4018,59086.0,59085.0,0.507742]
[1724833166265,0.4018,59086.0,59085.0,0.521742]
[1724833166507,0.41265859,59086.0,59085.0,0.521742]
[1724833167164,0.41265859,59086.0,59085.0,0.535742]
[1724833168890,0.41265859,59086.0,59085.0,0.197247]
[1724833169140,0.58190259,59086.0,59085.0,0.028]
[1724833169355,0.78160259,59086.0,59085.0,0.028]
[1724833169576,1.45858059,59086.0,59085.0,0.028]
[1724833169842,1.79706959,59086.0,59085.0,0.028]
[1724833170088,1.80206959,59086.0,59085.0,0.028]
[1724833170548,1.80206959,59086.0,59085.0,0.014]
[1724833170549,1.8776352,59086.0,59085.0,0.014]
[1724833170777,0.169282,59073.0,59069.0,0.169293]
[1724833170992,0.5725,59072.0,59069.0,0.169293]
[1724833171415,0.01085859,59071.0,59069.0,0.169293]
[1724833171861,0.01085859,59071.0,59070.0,0.16929]
[1724833172097,0.01085859,59071.0,59067.0,0.338596]
[1724833172328,0.01085859,59071.0,59069.0,0.169292]
[1724833172998,0.01085859,59071.0,59070.0,0.16929]
[1724833173221,0.18014659,59071.0,59068.0,0.1]
[1724833173446,0.18014659,59071.0,59065.0,0.338608]
[1724833173447,0.01085859,59071.0,59069.0,0.182291]
[1724833174350,0.01085859,59071.0,59070.0,0.16929]
[1724833175060,0.03740295,59071.0,59069.0,0.182292]
[1724833175271,0.03740295,59071.0,59070.0,0.16929]
[1724833175503,0.03740295,59071.0,59069.0,0.169292]
[1724833175739,0.03740295,59071.0,59070.0,0.16929]
[1724833175972,0.03740295,59071.0,59070.0,0.507871]
[1724833176642,0.03740295,59071.0,59070.0,1.185033]
[1724833176867,0.005,59089.0,59070.0,0.137]
[1724833176868,0.05042577,59088.0,59070.0,0.137]
[1724833177062,0.33848,59088.0,59083.0,0.169252]
[1724833177290,0.18010159,59087.0,59083.0,0.169252]
[1724833177524,0.02654076,59084.0,59083.0,0.507758]
[1724833177755,0.02654076,59084.0,59083.0,0.169252]
[1724833177962,0.03734629,59084.0,59083.0,0.169252]
[1724833178188,0.03734629,59084.0,59081.0,0.50777]
[1724833178413,0.03734629,59084.0,59082.0,0.169255]
[1724833179116,0.03734629,59084.0,59082.0,0.169254]
[1724833179348,0.03734629,59084.0,59083.0,0.170253]
[1724833179805,0.03734629,59084.0,59083.0,0.507759]
[1724833180465,0.03734629,59084.0,59083.0,0.846265]
[1724833180927,0.03734629,59084.0,59083.0,0.520759]
[1724833181151,0.03734629,59084.0,59083.0,0.872265]
[1724833181378,0.02654076,59084.0,59083.0,0.859265]
[1724833182067,0.02654076,59084.0,59083.0,0.507759]
[1724833182735,0.02654076,59084.0,59083.0,0.521759]
[1724833183154,0.02654076,59084.0,59083.0,0.535759]
[1724833183378,0.02654076,59084.0,59083.0,0.846265]
[1724833183798,0.02654076,59084.0,59083.0,0.535759]
[1724833184083,0.02654076,59084.0,59083.0,0.874265]
[1724833185189,0.02654076,59084.0,59083.0,0.860265]
[1724833185419,0.02654076,59084.0,59083.0,0.874265]
[1724833186060,0.02654076,59084.0,59083.0,0.846265]
[1724833186277,0.02654076,59084.0,59083.0,0.860265]
[1724833186508,0.57849076,59084.0,59083.0,0.028]
[1724833186731,0.60914076,59084.0,59083.0,0.197253]
[1724833186966,0.61994629,59084.0,59083.0,0.028]
[1724833187188,0.03734629,59084.0,59083.0,0.874265]
[1724833187422,0.03734629,59084.0,59083.0,0.535759]
[1724833187639,0.01080553,59084.0,59083.0,0.535759]
[1724833188060,0.1999,59087.0,59085.0,0.169246]
[1724833188285,0.1999,59087.0,59086.0,0.169244]
[1724833188560,0.1999,59087.0,59084.0,0.169248]
[1724833189247,0.1999,59087.0,59083.0,0.183253]
[1724833189458,0.1999,59087.0,59085.0,0.014]
[1724833189889,0.1999,59087.0,59084.0,0.16925]
[1724833190430,0.02653844,59090.0,59086.0,0.014]
[1724833190600,0.19577244,59090.0,59086.0,0.169244]
[1724833191462,0.02653844,59090.0,59084.0,0.194247]
[1724833191732,0.3919,59087.0,59086.0,0.169244]
[1724833193103,0.3919,59087.0,59084.0,0.01]
[1724833193324,0.3919,59087.0,59086.0,0.178244]
[1724833193756,0.3919,59087.0,59086.0,0.182244]
[1724833193999,0.3919,59087.0,59086.0,0.196244]
[1724833194445,0.19577144,59090.0,59086.0,0.196244]
[1724833194676,0.02653844,59090.0,59089.0,0.88744539]
[1724833194909,0.02653844,59090.0,59089.0,2.53356939]
[1724833195140,0.000817,59094.0,59093.0,0.846122]
[1724833195350,0.000817,59094.0,59093.0,1.284571]
[1724833196323,0.00012,59104.0,59103.0,1.02928]
[1724833196552,0.00012,59104.0,59103.0,1.791972]
[1724833196844,0.00012,59104.0,59103.0,1.685672]
[1724833197092,0.00012,59104.0,59103.0,0.94598]
[1724833197310,0.00012,59104.0,59103.0,1.284372]
[1724833198200,0.00012,59104.0,59103.0,1.298372]
[1724833198432,0.00012,59104.0,59103.0,2.060864]
[1724833198672,0.00012,59104.0,59103.0,2.088864]
[1724833199114,0.00012,59104.0,59103.0,2.074864]
[1724833199565,0.00012,59104.0,59103.0,2.088864]
[1724833200011,0.00012,59104.0,59103.0,2.074864]
[1724833200437,0.00012,59104.0,59103.0,2.279764]
[1724833200673,0.00012,59104.0,59103.0,2.265764]
[1724833200891,0.00012,59104.0,59103.0,2.638146]
[1724833201112,0.00020449,59107.0,59103.0,2.638146]
[1724833201113,0.00817,59109.0,59108.0,0.357581]
[1724833201363,0.00817,59113.0,59108.0,0.357581]
[1724833201364,0.00817,59113.0,59112.0,1.18288539]
[1724833201586,0.00817,59113.0,59112.0,1.98023539]
[1724833201816,0.00817,59113.0,59112.0,2.34157539]
[1724833202054,0.0004,59119.0,59113.0,0.845837]
[1724833202313,0.0114797,59125.0,59124.0,0.005]
[1724833202562,0.01346441,59134.0,59133.0,0.85055]
[1724833202776,0.4158,59156.0,59138.0,0.84548]
[1724833203026,0.4158,59156.0,59138.0,1.306672]
[1724833203301,0.4083,59145.0,59138.0,0.94548]
[1724833204203,0.01137232,59139.0,59138.0,0.94548]
[1724833204438,0.1864,59139.0,59138.0,0.621288]
[1724833204666,0.1864,59139.0,59132.0,0.1]
[1724833204898,0.19737232,59139.0,59138.0,0.521288]
[1724833205348,0.19737232,59139.0,59138.0,0.183096]
[1724833205560,0.19737232,59139.0,59138.0,0.521288]
[1724833205816,0.19737232,59139.0,59138.0,0.85948]
[1724833206001,0.19737232,59139.0,59138.0,0.535288]
[1724833206431,0.19737232,59139.0,59138.0,0.521288]
[1724833206888,0.19737232,59139.0,59138.0,0.183096]
[1724833207144,0.01137232,59139.0,59138.0,0.521288]
[1724833207348,0.01137232,59139.0,59138.0,0.94548]
[1724833207571,0.01137232,59139.0,59138.0,1.59571739]
[1724833207819,0.01137232,59139.0,59138.0,1.67287915]
[1724833208043,0.01137232,59139.0,59138.0,2.41327115]
[1724833208044,0.0004,59139.0,59138.0,2.41327115]
[1724833208258,0.0004,59139.0,59138.0,2.42727115]
[1724833208500,0.0004,59139.0,59138.0,2.08907915]
[1724833208732,0.0004,59139.0,59138.0,2.42727115]
[1724833208950,0.0265079,59153.0,59145.0,0.845377]
[1724833209168,0.0265079,59153.0,59145.0,1.58157339]
[1724833209672,0.0265079,59153.0,59145.0,1.24342239]
[1724833210146,0.0265079,59153.0,59145.0,1.97497339]
[1724833210370,0.00817,59154.0,59149.0,1.183451]
[1724833210590,0.00817,59154.0,59149.0,1.91498]
[1724833210829,0.00817,59154.0,59149.0,2.09254976]
[1724833211490,0.00817,59154.0,59149.0,1.26636739]
[1724833211734,0.00817,59154.0,59149.0,1.24336739]
[1724833212322,0.00817,59154.0,59149.0,1.25736739]
[1724833212748,0.00817,59154.0,59149.0,1.65906615]
[1724833212961,0.00719912,59154.0,59153.0,0.845265]
[1724833213185,0.00719912,59154.0,59153.0,1.36094076]
[1724833213412,0.00719912,59154.0,59153.0,1.75824076]
[1724833214509,0.00719912,59154.0,59153.0,1.37494076]
[1724833214733,0.00719912,59154.0,59153.0,1.320371]
[1724833214977,1.09894912,59154.0,59153.0,0.028]
[1724833215184,1.12545561,59154.0,59153.0,0.014]
[1724833215405,1.47467058,59154.0,59153.0,0.014]
[1724833215625,1.13657058,59154.0,59153.0,0.028]
[1724833215841,0.169074,59146.0,59140.0,0.338178]
[1724833216084,0.169074,59146.0,59136.0,0.50540786]
[1724833216311,0.01111497,59145.0,59142.0,0.169083]
[1724833216515,0.01111497,59145.0,59143.0,0.169081]
[1724833216734,0.02651167,59147.0,59138.0,0.29804539]
[1724833216941,0.02651167,59147.0,59146.0,0.507219]
[1724833217158,0.19619912,59154.0,59146.0,0.507219]
[1724833217159,0.00719912,59154.0,59153.0,0.845265]
[1724833217392,0.00719912,59154.0,59153.0,1.58141639]
[1724833217831,0.00719912,59154.0,59153.0,2.0148]
[1724833218035,0.00719912,59154.0,59153.0,2.0378]
[1724833218468,0.00719912,59154.0,59153.0,2.044999]
[1724833218675,0.00719912,59154.0,59153.0,2.053999]
[1724833218911,0.00719912,59154.0,59153.0,2.044999]
[1724833219366,0.00719912,59154.0,59153.0,2.058999]
[1724833219601,0.00719912,59154.0,59153.0,2.411105]
[1724833220040,0.00719912,59154.0,59153.0,2.383105]
[1724833220244,0.00719912,59154.0,59153.0,2.97802604]
[1724833220454,0.00719912,59154.0,59153.0,2.933611]
[1724833220867,0.00719912,59154.0,59153.0,2.581505]
[1724833221081,0.00719912,59154.0,59153.0,2.595505]
[1724833221374,0.00066964,59155.0,59153.0,2.595505]
[1724833221375,0.1888,59180.0,59163.0,0.169024]
[1724833221592,0.0004,59179.0,59172.0,0.506995]
[1724833221807,0.0004,59179.0,59172.0,1.48103439]
[1724833222017,0.0004,59179.0,59172.0,1.60403439]
[1724833222694,0.0004,59179.0,59172.0,0.606995]
[1724833223130,0.0004,59179.0,59172.0,0.268998]
[1724833223562,0.0004,59179.0,59172.0,0.620995]
[1724833223784,0.0004,59179.0,59172.0,0.643995]
[1724833223991,0.0004,59179.0,59172.0,0.967992]
[1724833224200,0.0004,59179.0,59172.0,1.26603739]
[1724833224424,0.0004,59179.0,59172.0,1.61803439]
[1724833224852,0.0004,59179.0,59172.0,1.28003739]
[1724833225059,0.0004,59179.0,59172.0,1.29403739]
[1724833225290,0.0004,59179.0,59172.0,1.61803439]
[1724833225503,0.0004,59179.0,59172.0,1.28003739]
[1724833225702,0.0004,59179.0,59172.0,1.63203439]
[1724833225913,0.0004,59179.0,59172.0,1.61803439]
[1724833226141,0.0004,59179.0,59172.0,1.60403439]
[1724833226371,0.0004,59179.0,59172.0,2.253086]
[1724833226600,0.0004,59179.0,59178.0,1.18287]
[1724833226819,0.0004,59179.0,59178.0,2.34917839]
[1724833227252,0.0004,59179.0,59178.0,1.60391539]
[1724833227482,0.0004,59179.0,59178.0,1.30587]
[1724833227700,0.1931,59179.0,59175.0,0.506967]
[1724833227918,0.01123778,59178.0,59175.0,0.168987]
[1724833228137,0.01123778,59178.0,59171.0,0.337998]
[1724833228352,0.01123778,59178.0,59165.0,0.29804539]
[1724833228353,0.168988,59176.0,59172.0,0.268996]
[1724833228557,0.2195958,59179.0,59172.0,0.1]
[1724833228766,0.1931,59179.0,59178.0,0.182981]
[1724833229030,0.1931,59179.0,59175.0,0.337977]
[1724833229256,0.1931,59179.0,59173.0,0.337986]
[1724833229468,0.1931,59179.0,59176.0,0.337974]
[1724833229682,0.1931,59179.0,59175.0,0.014]
[1724833229885,0.362079,59179.0,59175.0,0.182988]
[1724833230103,0.3895,59178.0,59174.0,0.268992]
[1724833230304,0.3895,59178.0,59159.0,0.31963435]
[1724833230305,0.3895,59177.0,59163.0,0.50540786]
[1724833230520,0.3895,59177.0,59176.0,0.506961]
[1724833230731,0.38501541,59177.0,59176.0,0.506961]
[1724833231122,0.28501541,59177.0,59176.0,0.168987]